[Event "Open Nuevo Centro. Jornada 1"]
[Site "Chess.com"]
[Date "2020.06.19"]
[Round "5"]
[White "Gimenez Sanchis, Jose Antonio"]
[Black "Zamora Soler, Raul"]
[Result "0-1"]
[WhiteElo "1434"]
[BlackElo "1749"]
[TimeControl "180+2"]
[EndTime "11:27:41 PDT"]
[Termination "Victoria de rzamora80 por abandono"]

1. c4 {[%clk 0:03:01.9]} 1... c5 {[%clk 0:03:00.1]} 2. Nc3 {[%clk 0:03:03]} 2...
Nc6 {[%clk 0:03:00.5]} 3. g3 {[%clk 0:03:04.5]} 3... g6 {[%clk 0:02:53.7]} 4.
Bg2 {[%clk 0:03:05.5]} 4... d6 {[%clk 0:02:55]} 5. Nf3 {[%clk 0:03:05.4]} 5...
Bg7 {[%clk 0:02:51.3]} 6. d3 {[%clk 0:03:06.7]} 6... e5 {[%clk 0:02:52.1]} 7.
Bd2 {[%clk 0:03:06.4]} 7... Nge7 {[%clk 0:02:53.4]} 8. O-O {[%clk 0:03:06]} 8...
O-O {[%clk 0:02:53.1]} 9. Rb1 {[%clk 0:03:04.6]} 9... a6 {[%clk 0:02:48.7]} 10.
a3 {[%clk 0:03:02.2]} 10... Rb8 {[%clk 0:02:49.1]} 11. b4 {[%clk 0:03:01.4]}
11... cxb4 {[%clk 0:02:46.5]} 12. axb4 {[%clk 0:03:01.8]} 12... b5 {[%clk
0:02:46.3]} 13. cxb5 {[%clk 0:02:45.4]} 13... axb5 {[%clk 0:02:46.2]} 14. Qc1
{[%clk 0:02:46.1]} 14... Bd7 {[%clk 0:02:38.1]} 15. Bh6 {[%clk 0:02:45.3]} 15...
Bg4 {[%clk 0:02:08.2]} 16. Bxg7 {[%clk 0:02:44.6]} 16... Kxg7 {[%clk 0:02:08.8]}
17. Qd2 {[%clk 0:02:36.6]} 17... d5 {[%clk 0:02:01.7]} 18. h3 {[%clk 0:02:25.1]}
18... Be6 {[%clk 0:01:57.2]} 19. Qg5 {[%clk 0:02:11.9]} 19... f6 {[%clk
0:01:55.9]} 20. Qd2 {[%clk 0:02:07]} 20... Qd7 {[%clk 0:01:51.6]} 21. h4 {[%clk
0:02:04.4]} 21... h5 {[%clk 0:01:47.3]} 22. Rfc1 {[%clk 0:02:01.8]} 22... Rfc8
{[%clk 0:01:46.9]} 23. Qb2 {[%clk 0:01:49.3]} 23... d4 {[%clk 0:01:24.4]} 24.
Ne4 {[%clk 0:01:45.9]} 24... Bd5 {[%clk 0:01:10.2]} 25. Nc5 {[%clk 0:01:45.8]}
25... Qd6 {[%clk 0:01:04.6]} 26. Nd2 {[%clk 0:01:35]} 26... Bxg2 {[%clk
0:00:49.5]} 27. Kxg2 {[%clk 0:01:35.3]} 27... f5 {[%clk 0:00:45.5]} 28. Kg1
{[%clk 0:01:34]} 28... Nd5 {[%clk 0:00:46.1]} 29. Qc2 {[%clk 0:01:24.3]} 29...
Ncxb4 {[%clk 0:00:44.8]} 30. Qb3 {[%clk 0:00:54.2]} 30... Rxc5 {[%clk
0:00:42.3]} 31. Rxc5 {[%clk 0:00:54.8]} 31... Qxc5 {[%clk 0:00:43.2]} 32. Nf3
{[%clk 0:00:51.6]} 32... Kf6 {[%clk 0:00:38.8]} 33. Ng5 {[%clk 0:00:38.4]} 33...
Rb7 {[%clk 0:00:38]} 34. Ra1 {[%clk 0:00:34.5]} 34... Qc3 {[%clk 0:00:26.4]} 35.
Qd1 {[%clk 0:00:25.6]} 35... Qc2 {[%clk 0:00:20.5]} 36. Qf1 {[%clk 0:00:20.8]}
36... Na2 {[%clk 0:00:18.5]} 37. Kg2 {[%clk 0:00:20]} 37... Ndc3 {[%clk
0:00:19.2]} 38. Nf3 {[%clk 0:00:18.1]} 38... b4 {[%clk 0:00:20]} 39. Re1 {[%clk
0:00:16]} 39... b3 {[%clk 0:00:20.5]} 40. e4 {[%clk 0:00:15]} 40... b2 {[%clk
0:00:17.9]} 41. exf5 {[%clk 0:00:14.1]} 41... b1=Q {[%clk 0:00:18.6]} 42. Rxb1
{[%clk 0:00:14.3]} 42... Rxb1 {[%clk 0:00:19.1]} 0

[Event "Open Nuevo Centro. Jornada 1"]
[Site "Chess.com"]
[Date "2020.06.19"]
[Round "5"]
[White "Teply Koutsky, David"]
[Black "Gimeno Higueras, Roberto"]
[Result "0-1"]
[WhiteElo "1659"]
[BlackElo "2064"]
[TimeControl "180+2"]
[EndTime "11:28:12 PDT"]
[Termination "Victoria de Chicogrande2 por jaque mate"]

1. d4 {[%clk 0:03:01.9]} 1... Nf6 {[%clk 0:03:00.7]} 2. c4 {[%clk 0:03:02.1]}
2... e6 {[%clk 0:03:01.5]} 3. Nc3 {[%clk 0:03:03]} 3... Bb4 {[%clk 0:03:02.6]}
4. f3 {[%clk 0:03:03.8]} 4... d5 {[%clk 0:03:03.2]} 5. a3 {[%clk 0:03:03.4]}
5... Bxc3+ {[%clk 0:03:04.2]} 6. bxc3 {[%clk 0:03:04.2]} 6... h6 {[%clk
0:03:04]} 7. e3 {[%clk 0:03:03.3]} 7... c5 {[%clk 0:03:04.3]} 8. cxd5 {[%clk
0:03:03.4]} 8... exd5 {[%clk 0:03:00.1]} 9. Bd3 {[%clk 0:03:02.6]} 9... O-O
{[%clk 0:02:59.1]} 10. Ne2 {[%clk 0:03:02.5]} 10... cxd4 {[%clk 0:02:55.9]} 11.
cxd4 {[%clk 0:03:01.3]} 11... Re8 {[%clk 0:02:52.9]} 12. O-O {[%clk 0:03:01.7]}
12... Nc6 {[%clk 0:02:51]} 13. Ra2 {[%clk 0:02:51.9]} 13... b6 {[%clk
0:02:21.4]} 14. g4 {[%clk 0:02:51.6]} 14... Qd6 {[%clk 0:02:14.5]} 15. Ng3
{[%clk 0:02:49.5]} 15... Na5 {[%clk 0:02:03]} 16. Rg2 {[%clk 0:02:41.6]} 16...
Nc4 {[%clk 0:01:43.2]} 17. Bxc4 {[%clk 0:02:41.6]} 17... dxc4 {[%clk 0:01:44.5]}
18. Qc2 {[%clk 0:02:42.1]} 18... b5 {[%clk 0:01:41.8]} 19. h4 {[%clk 0:02:33]}
19... Nh7 {[%clk 0:01:09.1]} 20. Ne4 {[%clk 0:02:23.3]} 20... Qg6 {[%clk
0:00:59.1]} 21. h5 {[%clk 0:02:13]} 21... Qe6 {[%clk 0:00:50.3]} 22. Nc5 {[%clk
0:01:57.5]} 22... Qd5 {[%clk 0:00:47.5]} 23. Ne4 {[%clk 0:01:42.5]} 23... a5
{[%clk 0:00:46]} 24. Nc3 {[%clk 0:01:40]} 24... Qd7 {[%clk 0:00:42.1]} 25. Qb1
{[%clk 0:01:32.2]} 25... Rb8 {[%clk 0:00:41.1]} 26. Ne4 {[%clk 0:01:21.7]} 26...
b4 {[%clk 0:00:40.1]} 27. axb4 {[%clk 0:01:18.3]} 27... axb4 {[%clk 0:00:41.4]}
28. Qc2 {[%clk 0:01:15.1]} 28... Qd5 {[%clk 0:00:37.6]} 29. Nd2 {[%clk
0:00:48.6]} 29... c3 {[%clk 0:00:35.3]} 30. Nb3 {[%clk 0:00:42.5]} 30... Ba6
{[%clk 0:00:35.4]} 31. Rd1 {[%clk 0:00:34.4]} 31... Qxf3 {[%clk 0:00:33.6]} 32.
Nc5 {[%clk 0:00:30.4]} 32... Bb7 {[%clk 0:00:25.8]} 33. Nxb7 {[%clk 0:00:18.6]}
33... Rxb7 {[%clk 0:00:26.5]} 34. Rf1 {[%clk 0:00:15.5]} 34... Qe4 {[%clk
0:00:27.1]} 35. Qb3 {[%clk 0:00:15.7]} 35... Qe6 {[%clk 0:00:27.3]} 36. Qb1
{[%clk 0:00:09]} 36... Ng5 {[%clk 0:00:28.1]} 37. Kh2 {[%clk 0:00:08.2]} 37...
b3 {[%clk 0:00:28.8]} 38. Re1 {[%clk 0:00:02]} 38... b2 {[%clk 0:00:29.6]} 39.
Bxb2 {[%clk 0:00:03.1]} 39... Rxb2 {[%clk 0:00:29.9]} 40. Rxb2 {[%clk
0:00:03.2]} 40... cxb2 {[%clk 0:00:31.3]} 41. Qxb2 {[%clk 0:00:04]} 41... Qxg4
{[%clk 0:00:32.5]} 42. Rg1 {[%clk 0:00:03.8]} 42... Qh4+ {[%clk 0:00:33.2]} 43.
Kg2 {[%clk 0:00:04.7]} 43... Qh3+ {[%clk 0:00:34.5]} 44. Kf2 {[%clk 0:00:05.3]}
44... Qxe3+ {[%clk 0:00:35.8]} 45. Kf1 {[%clk 0:00:05.5]} 45... Qf3+ {[%clk
0:00:36.1]} 46. Qf2 {[%clk 0:00:04.8]} 46... Qd3+ {[%clk 0:00:37.2]} 47. Kg2
{[%clk 0:00:05]} 47... Re2 {[%clk 0:00:38.2]} 48. Kh1 {[%clk 0:00:04.4]} 48...
Qh3+ {[%clk 0:00:37.6]} 49. Qh2 {[%clk 0:00:04.7]} 49... Qxh2# {[%clk
0:00:38.2]} 0

[Event "Open Nuevo Centro. Jornada 1"]
[Site "Chess.com"]
[Date "2020.06.19"]
[Round "5"]
[White "Gukasov, Artem"]
[Black "Ferrando Lacruz, Nicol�s "]
[Result "1-0"]
[WhiteElo "1564"]
[BlackElo "1174"]
[TimeControl "180+2"]
[EndTime "11:28:22 PDT"]
[Termination "Victoria de ArtemGukasov por jaque mate"]

1. e4 {[%clk 0:03:01.9]} 1... e5 {[%clk 0:02:58]} 2. Nf3 {[%clk 0:03:03.8]} 2...
Nc6 {[%clk 0:02:58.4]} 3. Bc4 {[%clk 0:03:05.1]} 3... Bc5 {[%clk 0:02:58.8]} 4.
d3 {[%clk 0:03:00.2]} 4... d6 {[%clk 0:02:58.6]} 5. Be3 {[%clk 0:02:59]} 5...
Bg4 {[%clk 0:02:57.2]} 6. Nc3 {[%clk 0:02:58.4]} 6... Nd4 {[%clk 0:02:56.8]} 7.
h3 {[%clk 0:02:42.6]} 7... Nxf3+ {[%clk 0:02:53.5]} 8. gxf3 {[%clk 0:02:44.5]}
8... Bh5 {[%clk 0:02:51]} 9. Qe2 {[%clk 0:02:43.1]} 9... Nf6 {[%clk 0:02:44.9]}
10. O-O-O {[%clk 0:02:40.5]} 10... d5 {[%clk 0:02:45]} 11. Nxd5 {[%clk
0:02:38.9]} 11... Nxd5 {[%clk 0:02:44.2]} 12. Bxd5 {[%clk 0:02:40.8]} 12... c6
{[%clk 0:02:41.4]} 13. Bb3 {[%clk 0:02:41.7]} 13... Bxe3+ {[%clk 0:02:38.1]} 14.
fxe3 {[%clk 0:02:23.3]} 14... O-O {[%clk 0:02:25.8]} 15. Qg2 {[%clk 0:02:14.4]}
15... a5 {[%clk 0:02:12.6]} 16. a3 {[%clk 0:02:12.6]} 16... a4 {[%clk
0:02:12.9]} 17. Ba2 {[%clk 0:02:03.8]} 17... b5 {[%clk 0:02:00.4]} 18. Rhg1
{[%clk 0:01:59.2]} 18... g6 {[%clk 0:01:59.1]} 19. Rdf1 {[%clk 0:01:59.3]} 19...
Qb6 {[%clk 0:01:52.1]} 20. Kd2 {[%clk 0:01:53.8]} 20... b4 {[%clk 0:01:49]} 21.
axb4 {[%clk 0:01:52.8]} 21... Qxb4+ {[%clk 0:01:46.8]} 22. Kc1 {[%clk
0:01:49.6]} 22... a3 {[%clk 0:01:41.8]} 23. b3 {[%clk 0:01:48.2]} 23... Qc3
{[%clk 0:01:07.7]} 24. Kd1 {[%clk 0:01:25.2]} 24... Qa1+ {[%clk 0:01:05.9]} 25.
Kd2 {[%clk 0:01:26.2]} 25... Qxa2 {[%clk 0:01:03.4]} 26. f4 {[%clk 0:01:24.6]}
26... c5 {[%clk 0:00:57]} 27. f5 {[%clk 0:01:23.1]} 27... c4 {[%clk 0:00:52.4]}
28. bxc4 {[%clk 0:01:22.1]} 28... Qb2 {[%clk 0:00:47.6]} 29. fxg6 {[%clk
0:01:19.6]} 29... fxg6 {[%clk 0:00:47.6]} 30. Rb1 {[%clk 0:01:13.3]} 30... Rab8
{[%clk 0:00:27.4]} 31. Rxb2 {[%clk 0:01:13.1]} 31... Rxb2 {[%clk 0:00:26.8]} 32.
Ra1 {[%clk 0:01:13.9]} 32... a2 {[%clk 0:00:20.5]} 33. Kc3 {[%clk 0:01:10]}
33... Rfb8 {[%clk 0:00:18.4]} 34. Qg5 {[%clk 0:01:08.3]} 34... Be2 {[%clk
0:00:16.5]} 35. Qxe5 {[%clk 0:01:06.1]} 35... Bf3 {[%clk 0:00:11.3]} 36. Qe6+
{[%clk 0:01:02.6]} 36... Kf8 {[%clk 0:00:12.1]} 37. Qf6+ {[%clk 0:01:03.4]}
37... Kg8 {[%clk 0:00:12.8]} 38. Qxf3 {[%clk 0:01:04.2]} 38... Kh8 {[%clk
0:00:13.1]} 39. Kd4 {[%clk 0:01:03.7]} 39... Kg8 {[%clk 0:00:13.1]} 40. Ke5
{[%clk 0:00:33.6]} 40... Rb1 {[%clk 0:00:14.2]} 41. Rxa2 {[%clk 0:00:33.6]}
41... Re8+ {[%clk 0:00:09.8]} 42. Kd4 {[%clk 0:00:33.8]} 42... Rd8+ {[%clk
0:00:10.7]} 43. Kc3 {[%clk 0:00:34.1]} 43... Rdb8 {[%clk 0:00:05.2]} 44. Ra7
{[%clk 0:00:32.4]} 44... Rc8 {[%clk 0:00:05.9]} 45. Qf7+ {[%clk 0:00:32.5]}
45... Kh8 {[%clk 0:00:05]} 46. Qxh7# {[%clk 0:00:34.1]} 1

[Event "Open Nuevo Centro. Jornada 1"]
[Site "Chess.com"]
[Date "2020.06.19"]
[Round "5"]
[White "Fern�ndez Martin, Carlos"]
[Black "Saiz Sapena, Veronica"]
[Result "1-0"]
[WhiteElo "1501"]
[BlackElo "1565"]
[TimeControl "180+2"]
[EndTime "11:28:31 PDT"]
[Termination "Victoria de Pistachomortal por abandono"]

1. e4 {[%clk 0:03:01.9]} 1... c6 {[%clk 0:02:59.7]} 2. Nc3 {[%clk 0:03:02.2]}
2... d5 {[%clk 0:03:00.3]} 3. Nf3 {[%clk 0:03:02.3]} 3... dxe4 {[%clk
0:03:00.2]} 4. Nxe4 {[%clk 0:03:02.5]} 4... Nf6 {[%clk 0:02:59.7]} 5. Nxf6+
{[%clk 0:03:01.1]} 5... exf6 {[%clk 0:03:00.5]} 6. d4 {[%clk 0:03:00.9]} 6...
Bd6 {[%clk 0:03:01.1]} 7. Bd3 {[%clk 0:03:00.3]} 7... O-O {[%clk 0:03:01.1]} 8.
O-O {[%clk 0:03:00.9]} 8... Bg4 {[%clk 0:02:57.7]} 9. Be3 {[%clk 0:02:35.1]}
9... Qc7 {[%clk 0:02:57.3]} 10. h3 {[%clk 0:02:25.6]} 10... Bh5 {[%clk
0:02:54.3]} 11. c4 {[%clk 0:02:16.2]} 11... Bf4 {[%clk 0:02:51.9]} 12. Bxf4
{[%clk 0:01:49.8]} 12... Qxf4 {[%clk 0:02:51.1]} 13. Be2 {[%clk 0:01:51]} 13...
Re8 {[%clk 0:02:46.1]} 14. Re1 {[%clk 0:01:47.2]} 14... Nd7 {[%clk 0:02:45.8]}
15. d5 {[%clk 0:01:40]} 15... cxd5 {[%clk 0:02:44.9]} 16. Qxd5 {[%clk
0:01:30.9]} 16... Qc7 {[%clk 0:02:44.7]} 17. Qxh5 {[%clk 0:01:31.2]} 17... Ne5
{[%clk 0:02:35.6]} 18. Nxe5 {[%clk 0:01:29.3]} 18... Rxe5 {[%clk 0:02:36]} 19.
Qf3 {[%clk 0:01:24.8]} 19... Rae8 {[%clk 0:02:36.2]} 20. Rad1 {[%clk 0:01:04]}
20... Qe7 {[%clk 0:02:27.8]} 21. Rd2 {[%clk 0:01:01.7]} 21... b6 {[%clk
0:02:26.6]} 22. b3 {[%clk 0:00:55.2]} 22... Qb4 {[%clk 0:02:25.9]} 23. Red1
{[%clk 0:00:46.1]} 23... Qe7 {[%clk 0:02:12.1]} 24. Bd3 {[%clk 0:00:44.5]} 24...
g6 {[%clk 0:02:09.9]} 25. Bf1 {[%clk 0:00:32.3]} 25... Kg7 {[%clk 0:02:03.3]}
26. Rd7 {[%clk 0:00:29.8]} 26... Qe6 {[%clk 0:01:59.9]} 27. R1d6 {[%clk
0:00:20.4]} 27... Qf5 {[%clk 0:01:55.6]} 28. Qxf5 {[%clk 0:00:13.4]} 28... Rxf5
{[%clk 0:01:55.8]} 29. Rxa7 {[%clk 0:00:14.9]} 29... Rfe5 {[%clk 0:01:46.8]} 30.
Rdd7 {[%clk 0:00:11.7]} 30... Kh6 {[%clk 0:01:45.7]} 31. Rxf7 {[%clk 0:00:05.8]}
31... Kg5 {[%clk 0:01:43.7]} 32. Rxh7 {[%clk 0:00:06.7]} 32... f5 {[%clk
0:01:43.1]} 33. h4+ {[%clk 0:00:06.5]} 33... Kf4 {[%clk 0:01:41]} 34. Rab7
{[%clk 0:00:07.3]} 34... Re1 {[%clk 0:01:40.3]} 35. g3+ {[%clk 0:00:09.1]} 35...
Kg4 {[%clk 0:01:32.5]} 36. Kg2 {[%clk 0:00:08.7]} 36... f4 {[%clk 0:01:30.8]}
37. Rbg7 {[%clk 0:00:08.9]} 37... f3+ {[%clk 0:01:29.2]} 38. Kh2 {[%clk
0:00:10]} 38... Kf5 {[%clk 0:01:21.7]} 39. Rf7+ {[%clk 0:00:09.9]} 39... Ke6
{[%clk 0:01:11.3]} 40. Bh3+ {[%clk 0:00:09]} 40... Kd6 {[%clk 0:01:11.6]} 41.
Rd7+ {[%clk 0:00:10.2]} 41... Kc5 {[%clk 0:01:12]} 42. Rc7+ {[%clk 0:00:11.1]}
42... Kb4 {[%clk 0:01:12.4]} 43. Rc6 {[%clk 0:00:12.5]} 43... R1e2 {[%clk
0:01:11.2]} 44. Rxb6+ {[%clk 0:00:12.7]} 44... Kc3 {[%clk 0:01:10.4]} 45. Rf6
{[%clk 0:00:13.6]} 45... Rxf2+ {[%clk 0:01:11.5]} 46. Kg1 {[%clk 0:00:14.6]}
46... Ree2 {[%clk 0:01:10.2]} 47. Rhf7 {[%clk 0:00:11.5]} 47... Rxa2 {[%clk
0:01:09.1]} 48. Rxf3+ {[%clk 0:00:12.1]} 48... Rxf3 {[%clk 0:01:09.8]} 49. Rxf3+
{[%clk 0:00:09.4]} 49... Kb4 {[%clk 0:01:10.5]} 50. Be6 {[%clk 0:00:09.5]} 50...
Ra1+ {[%clk 0:01:09.6]} 51. Kh2 {[%clk 0:00:10.5]} 51... Ra6 {[%clk 0:01:09.9]}
52. Bd5 {[%clk 0:00:08.9]} 52... Rd6 {[%clk 0:01:09.2]} 53. Kh3 {[%clk 0:00:10]}
53... Kc5 {[%clk 0:01:06.3]} 54. Kg4 {[%clk 0:00:09.7]} 54... Kd4 {[%clk
0:01:06.7]} 55. Rf4+ {[%clk 0:00:10.3]} 55... Ke5 {[%clk 0:01:07]} 56. Kg5
{[%clk 0:00:10.4]} 56... Rb6 {[%clk 0:01:04.5]} 57. Re4+ {[%clk 0:00:11.1]}
57... Kd6 {[%clk 0:01:00.9]} 58. Re6+ {[%clk 0:00:12.7]} 58... Kc7 {[%clk
0:01:01.9]} 59. Rxb6 {[%clk 0:00:12.5]} 59... Kxb6 {[%clk 0:01:03.8]} 60. Kxg6
{[%clk 0:00:13.6]} 60... Kc5 {[%clk 0:01:04.5]} 61. h5 {[%clk 0:00:14.8]} 61...
Kb4 {[%clk 0:01:06.4]} 62. h6 {[%clk 0:00:16.1]} 62... Kxb3 {[%clk 0:01:08.3]}
63. h7 {[%clk 0:00:17.5]} 63... Kc3 {[%clk 0:01:09.6]} 64. h8=Q+ {[%clk
0:00:18.1]} 1

[Event "Open Nuevo Centro. Jornada 1"]
[Site "Chess.com"]
[Date "2020.06.19"]
[Round "5"]
[White "Luque Saiz, Andres"]
[Black "Garcia Oviedo, Alejandro"]
[Result "1-0"]
[WhiteElo "1781"]
[BlackElo "1859"]
[TimeControl "180+2"]
[EndTime "11:28:36 PDT"]
[Termination "Victoria de Chuch1n por abandono"]

1. e4 {[%clk 0:03:01.9]} 1... d5 {[%clk 0:03:00.3]} 2. exd5 {[%clk 0:03:02.5]}
2... Qxd5 {[%clk 0:03:00.2]} 3. Nc3 {[%clk 0:03:03.4]} 3... Qa5 {[%clk
0:03:01.9]} 4. d4 {[%clk 0:03:04.2]} 4... Nf6 {[%clk 0:03:03.6]} 5. Nf3 {[%clk
0:03:05.2]} 5... Bf5 {[%clk 0:03:04.8]} 6. Bc4 {[%clk 0:03:06.4]} 6... e6 {[%clk
0:03:06.3]} 7. O-O {[%clk 0:03:07.3]} 7... Be7 {[%clk 0:03:07.2]} 8. Bd2 {[%clk
0:03:07]} 8... c6 {[%clk 0:03:08.6]} 9. Nd5 {[%clk 0:03:04.5]} 9... Qd8 {[%clk
0:03:09.4]} 10. Nxe7 {[%clk 0:03:05.5]} 10... Qxe7 {[%clk 0:03:10.8]} 11. a3
{[%clk 0:03:06.5]} 11... a5 {[%clk 0:03:08.6]} 12. b4 {[%clk 0:03:00.3]} 12...
O-O {[%clk 0:03:07.7]} 13. bxa5 {[%clk 0:02:59.2]} 13... Rd8 {[%clk 0:03:07.9]}
14. Bb4 {[%clk 0:02:45.8]} 14... Qc7 {[%clk 0:03:07.3]} 15. Qe2 {[%clk
0:02:43.5]} 15... Nd5 {[%clk 0:03:01.9]} 16. c3 {[%clk 0:02:41.1]} 16... Nd7
{[%clk 0:02:52.3]} 17. Ne5 {[%clk 0:02:25.1]} 17... Nxe5 {[%clk 0:02:06.8]} 18.
Qxe5 {[%clk 0:02:23.8]} 18... Qxe5 {[%clk 0:02:07.9]} 19. dxe5 {[%clk
0:02:25.7]} 19... Rac8 {[%clk 0:02:01]} 20. a6 {[%clk 0:01:58.7]} 20... b6
{[%clk 0:01:39]} 21. Bxd5 {[%clk 0:01:53.1]} 21... Rxd5 {[%clk 0:01:37.6]} 22.
Bd6 {[%clk 0:01:26.5]} 22... Bd3 {[%clk 0:01:37.2]} 23. Rfc1 {[%clk 0:01:16.3]}
23... Bxa6 {[%clk 0:01:37.8]} 24. c4 {[%clk 0:01:14.3]} 24... Rd4 {[%clk
0:01:35.7]} 25. c5 {[%clk 0:01:15.1]} 25... bxc5 {[%clk 0:01:30.1]} 26. Rxc5
{[%clk 0:01:17]} 26... Bb5 {[%clk 0:01:29]} 27. g3 {[%clk 0:01:04.7]} 27... Ra8
{[%clk 0:01:29]} 28. Kg2 {[%clk 0:01:03.6]} 28... h5 {[%clk 0:01:09.5]} 29. h4
{[%clk 0:01:01.8]} 29... Kh7 {[%clk 0:01:10.1]} 30. Rc3 {[%clk 0:00:52.7]} 30...
Kg6 {[%clk 0:01:07.7]} 31. Re1 {[%clk 0:00:40.8]} 31... Raa4 {[%clk 0:01:01.8]}
32. Kf3 {[%clk 0:00:36.1]} 32... Rd2 {[%clk 0:00:51.2]} 33. Rcc1 {[%clk
0:00:32.4]} 33... Rad4 {[%clk 0:00:43.9]} 34. Bb4 {[%clk 0:00:31.9]} 34... R2d3+
{[%clk 0:00:29.3]} 35. Re3 {[%clk 0:00:31.9]} 35... Rxe3+ {[%clk 0:00:25.6]} 36.
Kxe3 {[%clk 0:00:33.8]} 36... Rd3+ {[%clk 0:00:24.9]} 37. Ke4 {[%clk 0:00:30.4]}
37... f5+ {[%clk 0:00:19.5]} 38. exf6 {[%clk 0:00:29.8]} 38... gxf6 {[%clk
0:00:21.4]} 39. Rc5 {[%clk 0:00:20.6]} 39... Rd1 {[%clk 0:00:16.5]} 40. Ke3
{[%clk 0:00:20.6]} 40... e5 {[%clk 0:00:15.7]} 41. Rc3 {[%clk 0:00:20.9]} 41...
Re1+ {[%clk 0:00:16.4]} 42. Kf3 {[%clk 0:00:22]} 42... Ra1 {[%clk 0:00:17.7]}
43. Kg2 {[%clk 0:00:22.6]} 43... Ra2 {[%clk 0:00:18.7]} 44. Re3 {[%clk
0:00:22.6]} 44... Kf5 {[%clk 0:00:20]} 45. Rf3+ {[%clk 0:00:23.3]} 45... Kg6
{[%clk 0:00:21]} 46. Rc3 {[%clk 0:00:22.9]} 46... Rb2 {[%clk 0:00:20.5]} 47. Rc1
{[%clk 0:00:23]} 47... Re2 {[%clk 0:00:20.3]} 48. Rd1 {[%clk 0:00:23.6]} 48...
Rc2 {[%clk 0:00:20.9]} 49. Rd2 {[%clk 0:00:19.3]} 49... Rc1 {[%clk 0:00:20.2]}
50. Rd6 {[%clk 0:00:18.7]} 50... c5 {[%clk 0:00:20.9]} 51. Bd2 {[%clk
0:00:19.2]} 51... Kf5 {[%clk 0:00:21.4]} 52. Bxc1 {[%clk 0:00:19.3]} 52... c4
{[%clk 0:00:22.4]} 53. Rb6 {[%clk 0:00:19.8]} 53... Bd7 {[%clk 0:00:23.4]} 54.
Kf3 {[%clk 0:00:20.6]} 54... c3 {[%clk 0:00:24.4]} 55. Ke3 {[%clk 0:00:22.5]}
55... c2 {[%clk 0:00:25.8]} 56. Kd2 {[%clk 0:00:23.1]} 56... Ba4 {[%clk
0:00:26]} 57. Ke3 {[%clk 0:00:23.7]} 57... Kg6 {[%clk 0:00:26.6]} 58. Rb4 {[%clk
0:00:25.6]} 58... Bd7 {[%clk 0:00:27.3]} 59. a4 {[%clk 0:00:27.5]} 59... Bf5
{[%clk 0:00:27.8]} 60. a5 {[%clk 0:00:29.1]} 60... Bc8 {[%clk 0:00:29.7]} 61.
Rb6 {[%clk 0:00:29.7]} 61... Kf5 {[%clk 0:00:30.8]} 62. a6 {[%clk 0:00:30.7]}
1

[Event "Open Nuevo Centro. Jornada 1"]
[Site "Chess.com"]
[Date "2020.06.19"]
[Round "5"]
[White "Gimenez Saiz, Jose Raul"]
[Black "Simarro Peir�, Andr�s"]
[Result "1-0"]
[WhiteElo "1533"]
[BlackElo "1164"]
[TimeControl "180+2"]
[EndTime "11:28:45 PDT"]
[Termination "Victoria de rango013 por tiempo"]

1. d4 {[%clk 0:02:30.9]} 1... d5 {[%clk 0:02:57.8]} 2. e3 {[%clk 0:02:30.9]}
2... Nf6 {[%clk 0:02:54.1]} 3. Bd3 {[%clk 0:02:27]} 3... e6 {[%clk 0:02:53.6]}
4. Nd2 {[%clk 0:02:24.6]} 4... Bd6 {[%clk 0:02:54.2]} 5. f4 {[%clk 0:02:20.5]}
5... O-O {[%clk 0:02:54.3]} 6. Ngf3 {[%clk 0:02:19.4]} 6... b6 {[%clk
0:02:51.9]} 7. Kf2 {[%clk 0:02:16.9]} 7... Ng4+ {[%clk 0:02:50.8]} 8. Ke2 {[%clk
0:02:16.9]} 8... Bb7 {[%clk 0:02:43.3]} 9. h3 {[%clk 0:02:13.3]} 9... Nf6 {[%clk
0:02:42.2]} 10. Rf1 {[%clk 0:02:12.2]} 10... Qc8 {[%clk 0:02:37.9]} 11. Kf2
{[%clk 0:02:11.3]} 11... Ba6 {[%clk 0:02:33]} 12. c4 {[%clk 0:02:10.5]} 12...
dxc4 {[%clk 0:02:29.4]} 13. Nxc4 {[%clk 0:02:10.3]} 13... Bxc4 {[%clk
0:02:28.6]} 14. Bxc4 {[%clk 0:02:11.1]} 14... Ne4+ {[%clk 0:02:27.9]} 15. Kg1
{[%clk 0:02:07.7]} 15... Qd8 {[%clk 0:02:18.4]} 16. Bd3 {[%clk 0:01:54.5]} 16...
Ng3 {[%clk 0:02:15.3]} 17. Rf2 {[%clk 0:01:54.9]} 17... Qh4 {[%clk 0:02:15.2]}
18. Ng5 {[%clk 0:01:50.7]} 18... h6 {[%clk 0:02:04.1]} 19. Ne4 {[%clk
0:01:45.4]} 19... f5 {[%clk 0:02:00.2]} 20. Nxg3 {[%clk 0:01:43.6]} 20... Qxg3
{[%clk 0:01:59]} 21. Bd2 {[%clk 0:01:41.9]} 21... Qg6 {[%clk 0:01:49.2]} 22. Qb3
{[%clk 0:01:38]} 22... Nc6 {[%clk 0:01:39.1]} 23. Rc1 {[%clk 0:01:33.9]} 23...
Na5 {[%clk 0:01:36.7]} 24. Qc2 {[%clk 0:01:28.5]} 24... Nb7 {[%clk 0:01:24.7]}
25. e4 {[%clk 0:01:28.4]} 25... fxe4 {[%clk 0:01:24.2]} 26. Bxe4 {[%clk
0:01:27.8]} 26... Qf6 {[%clk 0:01:20.8]} 27. Bxb7 {[%clk 0:01:25.8]} 27... Rab8
{[%clk 0:01:20.4]} 28. Be4 {[%clk 0:01:19.3]} 28... Qxd4 {[%clk 0:01:16.9]} 29.
Bc3 {[%clk 0:01:17.4]} 29... Qe3 {[%clk 0:01:05.3]} 30. Re1 {[%clk 0:01:07.2]}
30... Qg3 {[%clk 0:01:02]} 31. Rf3 {[%clk 0:00:59.4]} 31... Bc5+ {[%clk
0:01:00.9]} 32. Kh1 {[%clk 0:00:55.8]} 32... Qh4 {[%clk 0:00:55.4]} 33. Bh7+
{[%clk 0:00:55.3]} 33... Kh8 {[%clk 0:00:53.1]} 34. Qg6 {[%clk 0:00:34.5]} 34...
Bd4 {[%clk 0:00:21.1]} 35. Bxd4 {[%clk 0:00:26.9]} 35... Qxe1+ {[%clk
0:00:21.1]} 36. Kh2 {[%clk 0:00:26]} 36... Rf6 {[%clk 0:00:15.9]} 37. Bxf6
{[%clk 0:00:25.4]} 37... gxf6 {[%clk 0:00:15.7]} 38. Qxh6 {[%clk 0:00:18.4]}
38... Qe2 {[%clk 0:00:15.3]} 39. Bd3+ {[%clk 0:00:13.2]} 39... Kg8 {[%clk
0:00:10.5]} 40. Bxe2 {[%clk 0:00:14]} 40... f5 {[%clk 0:00:09.8]} 41. Rg3+
{[%clk 0:00:14.2]} 41... Kf7 {[%clk 0:00:09.8]} 42. Bh5+ {[%clk 0:00:13.9]}
42... Ke7 {[%clk 0:00:11.7]} 43. Rg7+ {[%clk 0:00:13.9]} 43... Kd6 {[%clk
0:00:11.9]} 44. Rg6 {[%clk 0:00:11.1]} 44... Kc6 {[%clk 0:00:12.3]} 45. Rxe6+
{[%clk 0:00:12]} 45... Kb7 {[%clk 0:00:13.3]} 46. Qg7 {[%clk 0:00:12.9]} 46...
Rd8 {[%clk 0:00:12.3]} 47. Bf3+ {[%clk 0:00:14.3]} 47... Kb8 {[%clk 0:00:10.1]}
48. Re7 {[%clk 0:00:15]} 48... Rc8 {[%clk 0:00:10]} 49. Rf7 {[%clk 0:00:14.3]}
49... a6 {[%clk 0:00:09.5]} 50. Qe5 {[%clk 0:00:15.1]} 50... a5 {[%clk
0:00:07.1]} 51. Qd5 {[%clk 0:00:16.4]} 1